[Event "Titled Tuesday Blitz February 22 Early 2022"]
[White "Kashefi, Amir Hosein"]
[Black "Brodowski, Piotr"]
[WhiteFideId "12557935"]
[BlackFideId "1124480"]
[WhiteElo "2098"]
[BlackElo "2422"]
[Result "1-0"]
[Round "03"]
[TimeControl "180+1"]
[Date "2022.02.22"]
[WhiteClock "0:00:07"]
[BlackClock "0:00:10"]

1. e4 {[%clk 0:03:00]}  d6 {[%clk 0:02:58]} 2. d4 {[%clk 0:03:00]}  Nf6 {[%clk 0:02:56]} 3. Nc3 {[%clk 0:03:00]}  g6 {[%clk 0:02:56]} 4. Bg5 {[%clk 0:02:58]}  Nc6 {[%clk 0:02:43]} 5. Nf3 {[%clk 0:02:39]}  Bg7 {[%clk 0:02:40]} 6. e5 {[%clk 0:02:38]}  Nd7 {[%clk 0:02:31]} 7. Bc4 {[%clk 0:02:18]}  dxe5 {[%clk 0:02:17]} 8. d5 {[%clk 0:01:58]}  Nd4 {[%clk 0:02:14]} 9. Nxd4 {[%clk 0:01:44]}  exd4 {[%clk 0:02:07]} 10. Ne2 {[%clk 0:01:41]}  Nb6 {[%clk 0:01:59]} 11. Bb3 {[%clk 0:01:37]}  c5 {[%clk 0:01:37]} 12. dxc6 {[%clk 0:01:33]}  bxc6 {[%clk 0:01:37]} 13. O-O {[%clk 0:01:32]}  O-O {[%clk 0:01:36]} 14. Qd2 {[%clk 0:01:20]}  Ba6 {[%clk 0:01:33]} 15. Rfe1 {[%clk 0:01:18]}  Qd6 {[%clk 0:01:28]} 16. Ng3 {[%clk 0:01:07]}  Rae8 {[%clk 0:01:01]} 17. Ne4 {[%clk 0:01:04]}  Qc7 {[%clk 0:00:58]} 18. Bh6 {[%clk 0:00:41]}  c5 {[%clk 0:00:49]} 19. Bxg7 {[%clk 0:00:30]}  Kxg7 {[%clk 0:00:49]} 20. Qa5 {[%clk 0:00:21]}  Bb7 {[%clk 0:00:45]} 21. Qxc5 {[%clk 0:00:20]}  Qxc5 {[%clk 0:00:44]} 22. Nxc5 {[%clk 0:00:19]}  Bc6 {[%clk 0:00:44]} 23. Rad1 {[%clk 0:00:18]}  e5 {[%clk 0:00:45]} 24. f3 {[%clk 0:00:16]}  Bd5 {[%clk 0:00:27]} 25. Ne4 {[%clk 0:00:14]}  Bxb3 {[%clk 0:00:26]} 26. cxb3 {[%clk 0:00:12]}  Rd8 {[%clk 0:00:23]} 27. Nc5 {[%clk 0:00:10]}  Rfe8 {[%clk 0:00:22]} 28. Nd3 {[%clk 0:00:08]}  f6 {[%clk 0:00:22]} 29. Kf2 {[%clk 0:00:08]}  Nd5 {[%clk 0:00:22]} 30. a3 {[%clk 0:00:07]}  Ne3 {[%clk 0:00:20]} 31. Rc1 {[%clk 0:00:07]}  Rc8 {[%clk 0:00:21]} 32. b4 {[%clk 0:00:04]}  g5 {[%clk 0:00:21]} 33. Nc5 {[%clk 0:00:04]}  Kg6 {[%clk 0:00:20]} 34. g4 {[%clk 0:00:04]}  h5 {[%clk 0:00:20]} 35. Rxe3 {[%clk 0:00:02]}  dxe3+ {[%clk 0:00:20]} 36. Kxe3 {[%clk 0:00:03]}  hxg4 {[%clk 0:00:21]} 37. fxg4 {[%clk 0:00:03]}  Red8 {[%clk 0:00:22]} 38. Rf1 {[%clk 0:00:03]}  Rd4 {[%clk 0:00:15]} 39. Ne4 {[%clk 0:00:03]}  Rc6 {[%clk 0:00:15]} 40. b5 {[%clk 0:00:03]}  Rb6 {[%clk 0:00:13]} 41. b4 {[%clk 0:00:03]}  a6 {[%clk 0:00:09]} 42. bxa6 {[%clk 0:00:03]}  Rxa6 {[%clk 0:00:10]} 43. a4 {[%clk 0:00:04]}  Rxb4 {[%clk 0:00:10]} 44. Nc5 {[%clk 0:00:04]}  Rc6 {[%clk 0:00:08]} 45. Nd7 {[%clk 0:00:03]}  Rxa4 {[%clk 0:00:07]} 46. Nf8+ {[%clk 0:00:01]}  Kf7 {[%clk 0:00:08]} 47. Nd7 {[%clk 0:00:02]}  Ra7 {[%clk 0:00:08]} 48. Nxe5+ {[%clk 0:00:02]}  Ke6 {[%clk 0:00:08]} 49. Nxc6 {[%clk 0:00:03]}  Ra3+ {[%clk 0:00:09]} 50. Ke4 {[%clk 0:00:03]}  Ra4+ {[%clk 0:00:09]} 51. Nd4+ {[%clk 0:00:04]}  Ke7 {[%clk 0:00:09]} 52. Rf5 {[%clk 0:00:04]}  Ra1 {[%clk 0:00:09]} 53. Rb5 {[%clk 0:00:04]}  Rh1 {[%clk 0:00:09]} 54. Rb7+ {[%clk 0:00:03]}  Kd6 {[%clk 0:00:09]} 55. Rb6+ {[%clk 0:00:04]}  Kc5 {[%clk 0:00:09]} 56. Rc6+ {[%clk 0:00:05]}  Kb4 {[%clk 0:00:08]} 57. Rxf6 {[%clk 0:00:05]}  Rxh2 {[%clk 0:00:08]} 58. Kd5 {[%clk 0:00:04]}  Rg2 {[%clk 0:00:08]} 59. Rb6+ {[%clk 0:00:04]}  Ka4 {[%clk 0:00:07]} 60. Kc4 {[%clk 0:00:03]}  Ka5 {[%clk 0:00:07]} 61. Rb5+ {[%clk 0:00:03]}  Ka6 {[%clk 0:00:08]} 62. Rxg5 {[%clk 0:00:04]}  Kb6 {[%clk 0:00:08]} 63. Rg6+ {[%clk 0:00:04]}  Kc7 {[%clk 0:00:09]} 64. g5 {[%clk 0:00:04]}  Kd7 {[%clk 0:00:09]} 65. Kd5 {[%clk 0:00:05]}  Ke7 {[%clk 0:00:10]} 66. Rg7+ {[%clk 0:00:04]}  Kf8 {[%clk 0:00:10]} 67. Ne6+ {[%clk 0:00:05]}  Ke8 {[%clk 0:00:09]} 68. Nf4 {[%clk 0:00:04]}  Kf8 {[%clk 0:00:08]} 69. Rg6 {[%clk 0:00:04]}  Rf2 {[%clk 0:00:08]} 70. Rf6+ {[%clk 0:00:04]}  Kg8 {[%clk 0:00:09]} 71. Ke5 {[%clk 0:00:04]}  Re2+ {[%clk 0:00:09]} 72. Kf5 {[%clk 0:00:04]}  Ra2 {[%clk 0:00:10]} 73. Kg6 {[%clk 0:00:04]}  Ra8 {[%clk 0:00:10]} 74. Nd5 {[%clk 0:00:05]}  Ra7 {[%clk 0:00:10]} 75. Kh6 {[%clk 0:00:04]}  Rh7+ {[%clk 0:00:09]} 76. Kg6 {[%clk 0:00:04]}  Rg7+ {[%clk 0:00:10]} 77. Kf5 {[%clk 0:00:05]}  Ra7 {[%clk 0:00:10]} 78. Nf4 {[%clk 0:00:06]}  Ra5+ {[%clk 0:00:09]} 79. Kg6 {[%clk 0:00:06]}  Ra7 {[%clk 0:00:09]} 80. Ne6 {[%clk 0:00:06]}  Ra8 {[%clk 0:00:09]} 81. Rf8+ {[%clk 0:00:05]}  Rxf8 {[%clk 0:00:08]} 82. Nxf8 {[%clk 0:00:06]}  Kxf8 {[%clk 0:00:09]} 83. Kh7 {[%clk 0:00:06]}  Ke7 {[%clk 0:00:10]} 84. g6 {[%clk 0:00:07]} 1-0


[Site "https://www.chess.com"]

[Event "Titled Tuesday Blitz February 22 Early 2022"]
[White "Khumalo, Keith"]
[Black "Langner, Ladislav"]
[WhiteFideId "14319470"]
[BlackFideId "300403"]
[WhiteElo "1992"]
[BlackElo "2346"]
[Result "1-0"]
[Round "03"]
[TimeControl "180+1"]
[Date "2022.02.22"]
[WhiteClock "0:01:40"]
[BlackClock "0:00:11"]

1. d4 {[%clk 0:03:00]}  Nf6 {[%clk 0:02:59]} 2. c4 {[%clk 0:03:00]}  g6 {[%clk 0:03:00]} 3. Nc3 {[%clk 0:02:59]}  d5 {[%clk 0:03:00]} 4. Bg5 {[%clk 0:02:58]}  Ne4 {[%clk 0:03:00]} 5. Bf4 {[%clk 0:02:59]}  Nxc3 {[%clk 0:02:59]} 6. bxc3 {[%clk 0:03:00]}  Bg7 {[%clk 0:02:58]} 7. e3 {[%clk 0:03:00]}  c5 {[%clk 0:02:58]} 8. Nf3 {[%clk 0:03:01]}  O-O {[%clk 0:02:57]} 9. cxd5 {[%clk 0:03:01]}  Qxd5 {[%clk 0:02:57]} 10. Be2 {[%clk 0:03:00]}  cxd4 {[%clk 0:02:55]} 11. cxd4 {[%clk 0:03:01]}  Nc6 {[%clk 0:02:44]} 12. O-O {[%clk 0:03:00]}  Rd8 {[%clk 0:02:43]} 13. Qa4 {[%clk 0:03:01]}  Bd7 {[%clk 0:02:38]} 14. Qa3 {[%clk 0:02:50]}  e6 {[%clk 0:02:35]} 15. Rab1 {[%clk 0:02:48]}  b6 {[%clk 0:02:33]} 16. Ng5 {[%clk 0:02:45]}  e5 {[%clk 0:02:18]} 17. Bf3 {[%clk 0:02:37]}  Qa5 {[%clk 0:01:57]} 18. Qxa5 {[%clk 0:02:20]}  bxa5 {[%clk 0:01:54]} 19. dxe5 {[%clk 0:02:19]}  h6 {[%clk 0:01:47]} 20. e6 {[%clk 0:02:13]}  fxe6 {[%clk 0:01:37]} 21. Ne4 {[%clk 0:02:10]}  Nb4 {[%clk 0:01:23]} 22. Bc7 {[%clk 0:02:04]}  Rf8 {[%clk 0:01:08]} 23. Bxa5 {[%clk 0:02:00]}  Nd5 {[%clk 0:01:08]} 24. Nc5 {[%clk 0:01:59]}  Bc8 {[%clk 0:00:56]} 25. Rfd1 {[%clk 0:01:56]}  Kh7 {[%clk 0:00:53]} 26. h4 {[%clk 0:01:52]}  a6 {[%clk 0:00:51]} 27. h5 {[%clk 0:01:52]}  gxh5 {[%clk 0:00:48]} 28. Bxh5 {[%clk 0:01:52]}  Ra7 {[%clk 0:00:47]} 29. Bf3 {[%clk 0:01:52]}  Raf7 {[%clk 0:00:46]} 30. Be4+ {[%clk 0:01:52]}  Kh8 {[%clk 0:00:45]} 31. Rd2 {[%clk 0:01:49]}  Nf6 {[%clk 0:00:39]} 32. Bg6 {[%clk 0:01:49]}  Re7 {[%clk 0:00:34]} 33. Rbd1 {[%clk 0:01:45]}  Nd5 {[%clk 0:00:34]} 34. g3 {[%clk 0:01:43]}  Be5 {[%clk 0:00:28]} 35. e4 {[%clk 0:01:42]}  Nf6 {[%clk 0:00:26]} 36. f4 {[%clk 0:01:42]}  Bb8 {[%clk 0:00:22]} 37. Rd8 {[%clk 0:01:41]}  Ba7 {[%clk 0:00:10]} 38. Rxf8+ {[%clk 0:01:41]}  Kg7 {[%clk 0:00:11]} 39. Rxc8 {[%clk 0:01:40]} 1-0


[Site "https://www.chess.com"]

[Event "Titled Tuesday Blitz February 22 Early 2022"]
[White "Kiolbasa, Oliwia"]
[Black "Blohberger, Felix"]
[WhiteFideId "1154613"]
[BlackFideId "1632051"]
[WhiteElo "2190"]
[BlackElo "2474"]
[Result "1/2-1/2"]
[Round "03"]
[TimeControl "180+1"]
[Date "2022.02.22"]
[WhiteClock "0:00:08"]
[BlackClock "0:00:07"]

1. e4 {[%clk 0:03:00]}  e5 {[%clk 0:02:56]} 2. Nf3 {[%clk 0:03:00]}  Nc6 {[%clk 0:02:56]} 3. Bb5 {[%clk 0:03:00]}  Nf6 {[%clk 0:02:55]} 4. d3 {[%clk 0:02:57]}  d6 {[%clk 0:02:53]} 5. O-O {[%clk 0:02:49]}  Be7 {[%clk 0:02:54]} 6. c3 {[%clk 0:02:39]}  O-O {[%clk 0:02:53]} 7. Nbd2 {[%clk 0:02:37]}  a6 {[%clk 0:02:51]} 8. Ba4 {[%clk 0:02:37]}  Re8 {[%clk 0:02:51]} 9. Re1 {[%clk 0:02:36]}  Bf8 {[%clk 0:02:50]} 10. Nf1 {[%clk 0:02:32]}  b5 {[%clk 0:02:48]} 11. Bc2 {[%clk 0:02:32]}  d5 {[%clk 0:02:45]} 12. Ng3 {[%clk 0:02:30]}  dxe4 {[%clk 0:02:44]} 13. dxe4 {[%clk 0:02:31]}  Qxd1 {[%clk 0:02:44]} 14. Rxd1 {[%clk 0:02:31]}  h6 {[%clk 0:02:39]} 15. h3 {[%clk 0:02:20]}  Be6 {[%clk 0:02:38]} 16. Be3 {[%clk 0:02:13]}  a5 {[%clk 0:02:23]} 17. a4 {[%clk 0:02:09]}  b4 {[%clk 0:02:23]} 18. Bd3 {[%clk 0:02:07]}  Bd6 {[%clk 0:01:52]} 19. Bb5 {[%clk 0:01:53]}  Bd7 {[%clk 0:01:52]} 20. cxb4 {[%clk 0:01:48]}  Nxb4 {[%clk 0:01:50]} 21. Bxd7 {[%clk 0:01:43]}  Nxd7 {[%clk 0:01:51]} 22. Nf5 {[%clk 0:01:44]}  Re6 {[%clk 0:01:48]} 23. Nxd6 {[%clk 0:01:39]}  cxd6 {[%clk 0:01:39]} 24. Nh4 {[%clk 0:01:36]}  Nc2 {[%clk 0:01:35]} 25. Rac1 {[%clk 0:01:26]}  Nxe3 {[%clk 0:01:35]} 26. fxe3 {[%clk 0:01:26]}  Nc5 {[%clk 0:01:36]} 27. Nf5 {[%clk 0:01:25]}  Nxe4 {[%clk 0:01:15]} 28. Rc4 {[%clk 0:01:22]}  Nf6 {[%clk 0:01:04]} 29. Rxd6 {[%clk 0:01:18]}  Rb8 {[%clk 0:00:42]} 30. Rxe6 {[%clk 0:01:08]}  fxe6 {[%clk 0:00:43]} 31. Ne7+ {[%clk 0:01:09]}  Kh7 {[%clk 0:00:44]} 32. Nc6 {[%clk 0:01:09]}  Rxb2 {[%clk 0:00:44]} 33. Nxa5 {[%clk 0:01:09]}  Nd5 {[%clk 0:00:44]} 34. Re4 {[%clk 0:00:59]}  Ra2 {[%clk 0:00:45]} 35. Nc6 {[%clk 0:00:54]}  Nf6 {[%clk 0:00:30]} 36. Rxe5 {[%clk 0:00:41]}  Rxa4 {[%clk 0:00:30]} 37. Rxe6 {[%clk 0:00:42]}  h5 {[%clk 0:00:31]} 38. Nd4 {[%clk 0:00:40]}  Nd5 {[%clk 0:00:27]} 39. Nf5 {[%clk 0:00:34]}  g6 {[%clk 0:00:20]} 40. Re5 {[%clk 0:00:29]}  Nf6 {[%clk 0:00:17]} 41. Nd4 {[%clk 0:00:25]}  Ra2 {[%clk 0:00:15]} 42. Nf3 {[%clk 0:00:24]}  Kh6 {[%clk 0:00:13]} 43. Re6 {[%clk 0:00:24]}  Kg7 {[%clk 0:00:13]} 44. e4 {[%clk 0:00:22]}  Re2 {[%clk 0:00:08]} 45. Ng5 {[%clk 0:00:14]}  h4 {[%clk 0:00:04]} 46. Kf1 {[%clk 0:00:13]}  Ra2 {[%clk 0:00:04]} 47. Re7+ {[%clk 0:00:12]}  Kg8 {[%clk 0:00:04]} 48. e5 {[%clk 0:00:11]}  Nh5 {[%clk 0:00:04]} 49. e6 {[%clk 0:00:10]}  Ng3+ {[%clk 0:00:03]} 50. Ke1 {[%clk 0:00:11]}  Rxg2 {[%clk 0:00:03]} 51. Re8+ {[%clk 0:00:08]}  Kg7 {[%clk 0:00:03]} 52. e7 {[%clk 0:00:08]}  Re2+ {[%clk 0:00:03]} 53. Kd1 {[%clk 0:00:08]}  Kf6 {[%clk 0:00:02]} 54. Nf3 {[%clk 0:00:06]}  Rxe7 {[%clk 0:00:02]} 55. Rxe7 {[%clk 0:00:06]}  Kxe7 {[%clk 0:00:03]} 56. Nxh4 {[%clk 0:00:06]}  Kf6 {[%clk 0:00:01]} 57. Nxg6 {[%clk 0:00:06]}  Kxg6 {[%clk 0:00:02]} 58. h4 {[%clk 0:00:06]}  Nh5 {[%clk 0:00:03]} 59. Ke2 {[%clk 0:00:06]}  Kf5 {[%clk 0:00:04]} 60. Kf3 {[%clk 0:00:06]}  Ke5 {[%clk 0:00:05]} 61. Kg4 {[%clk 0:00:07]}  Nf6+ {[%clk 0:00:06]} 62. Kg5 {[%clk 0:00:07]}  Ke6 {[%clk 0:00:07]} 63. h5 {[%clk 0:00:08]}  Nxh5 {[%clk 0:00:07]} 1/2-1/2


[Site "https://www.chess.com"]

[Event "Titled Tuesday Blitz February 22 Early 2022"]
[White "Klukin, Kirill"]
[Black "Kazancev, Valerij M"]
[WhiteFideId "24199273"]
[BlackFideId "4179609"]
[WhiteElo "2324"]
[BlackElo "2465"]
[Result "1-0"]
[Round "03"]
[TimeControl "180+1"]
[Date "2022.02.22"]
[WhiteClock "0:01:17"]
[BlackClock "0:00:36"]

1. d4 {[%clk 0:03:00]}  Nf6 {[%clk 0:02:59]} 2. Nf3 {[%clk 0:03:00]}  g6 {[%clk 0:02:59]} 3. e3 {[%clk 0:03:00]}  Bg7 {[%clk 0:02:59]} 4. Be2 {[%clk 0:03:01]}  O-O {[%clk 0:02:59]} 5. O-O {[%clk 0:03:02]}  d6 {[%clk 0:02:59]} 6. c4 {[%clk 0:03:02]}  Nc6 {[%clk 0:02:59]} 7. Nc3 {[%clk 0:03:03]}  e5 {[%clk 0:02:59]} 8. b3 {[%clk 0:03:03]}  Re8 {[%clk 0:02:58]} 9. dxe5 {[%clk 0:03:03]}  Nxe5 {[%clk 0:02:58]} 10. Bb2 {[%clk 0:03:02]}  Nxf3+ {[%clk 0:02:40]} 11. Bxf3 {[%clk 0:03:02]}  a6 {[%clk 0:02:40]} 12. Qd2 {[%clk 0:03:02]}  Rb8 {[%clk 0:02:40]} 13. Rad1 {[%clk 0:03:00]}  Be6 {[%clk 0:02:32]} 14. Rfe1 {[%clk 0:02:56]}  Qe7 {[%clk 0:02:32]} 15. Rc1 {[%clk 0:02:54]}  Nd7 {[%clk 0:02:32]} 16. Ne2 {[%clk 0:02:48]}  Ne5 {[%clk 0:02:31]} 17. Bd5 {[%clk 0:02:43]}  c6 {[%clk 0:02:11]} 18. Bxe6 {[%clk 0:02:30]}  fxe6 {[%clk 0:02:11]} 19. Red1 {[%clk 0:02:21]}  Rbd8 {[%clk 0:02:11]} 20. h3 {[%clk 0:02:17]}  d5 {[%clk 0:02:10]} 21. Qc2 {[%clk 0:02:15]}  Qf7 {[%clk 0:01:49]} 22. Ng3 {[%clk 0:02:07]}  Rc8 {[%clk 0:01:24]} 23. Bd4 {[%clk 0:02:06]}  Nd7 {[%clk 0:01:14]} 24. Bxg7 {[%clk 0:01:56]}  Qxg7 {[%clk 0:01:14]} 25. Ne2 {[%clk 0:01:38]}  Nf6 {[%clk 0:01:11]} 26. Nf4 {[%clk 0:01:35]}  Qf7 {[%clk 0:01:10]} 27. Nd3 {[%clk 0:01:32]}  Ne4 {[%clk 0:01:09]} 28. f3 {[%clk 0:01:29]}  Nd6 {[%clk 0:01:05]} 29. Ne5 {[%clk 0:01:29]}  Qg7 {[%clk 0:01:05]} 30. f4 {[%clk 0:01:27]}  Ne4 {[%clk 0:01:03]} 31. cxd5 {[%clk 0:01:27]}  exd5 {[%clk 0:01:03]} 32. Rxd5 {[%clk 0:01:24]}  Nf6 {[%clk 0:00:46]} 33. Rd6 {[%clk 0:01:21]}  Re7 {[%clk 0:00:37]} 34. Rcd1 {[%clk 0:01:20]}  Nd5 {[%clk 0:00:36]} 35. R6xd5 {[%clk 0:01:17]} 1-0


[Site "https://www.chess.com"]

[Event "Titled Tuesday Blitz February 22 Early 2022"]
[White "Kobalia, Mikhail"]
[Black "Nur-Mukhametova, Alisa"]
[WhiteFideId "4119150"]
[BlackFideId "54117739"]
[WhiteElo "2667"]
[BlackElo "2015"]
[Result "1-0"]
[Round "03"]
[TimeControl "180+1"]
[Date "2022.02.22"]
[WhiteClock "0:01:57"]
[BlackClock "0:01:32"]

1. e4 {[%clk 0:03:00]}  c5 {[%clk 0:02:57]} 2. Nf3 {[%clk 0:03:00]}  d6 {[%clk 0:02:57]} 3. d4 {[%clk 0:03:00]}  cxd4 {[%clk 0:02:57]} 4. Nxd4 {[%clk 0:03:00]}  Nf6 {[%clk 0:02:57]} 5. Nc3 {[%clk 0:03:01]}  a6 {[%clk 0:02:57]} 6. Be3 {[%clk 0:03:01]}  e6 {[%clk 0:02:57]} 7. g4 {[%clk 0:03:00]}  h6 {[%clk 0:02:54]} 8. h4 {[%clk 0:03:00]}  Nc6 {[%clk 0:02:54]} 9. Rg1 {[%clk 0:02:59]}  d5 {[%clk 0:02:53]} 10. exd5 {[%clk 0:02:53]}  Nxd5 {[%clk 0:02:53]} 11. Nxd5 {[%clk 0:02:53]}  exd5 {[%clk 0:02:54]} 12. Qe2 {[%clk 0:02:50]}  Nxd4 {[%clk 0:02:36]} 13. Bxd4+ {[%clk 0:02:50]}  Qe7 {[%clk 0:02:36]} 14. O-O-O {[%clk 0:02:46]}  Qxe2 {[%clk 0:02:25]} 15. Bxe2 {[%clk 0:02:47]}  Bd6 {[%clk 0:02:25]} 16. Bxg7 {[%clk 0:02:44]}  Bf4+ {[%clk 0:02:25]} 17. Kb1 {[%clk 0:02:43]}  Rg8 {[%clk 0:02:25]} 18. Bf6 {[%clk 0:02:38]}  Be6 {[%clk 0:02:23]} 19. Bf3 {[%clk 0:02:32]}  Rg6 {[%clk 0:02:18]} 20. g5 {[%clk 0:02:31]}  hxg5 {[%clk 0:01:55]} 21. hxg5 {[%clk 0:02:32]}  Rc8 {[%clk 0:01:53]} 22. Bxd5 {[%clk 0:02:30]}  Bf5 {[%clk 0:01:48]} 23. Bb3 {[%clk 0:02:19]}  Be6 {[%clk 0:01:34]} 24. Rh1 {[%clk 0:02:07]}  Rg8 {[%clk 0:01:32]} 25. Bxe6 {[%clk 0:02:00]}  fxe6 {[%clk 0:01:32]} 26. Rh7 {[%clk 0:01:57]} 1-0


[Site "https://www.chess.com"]

[Event "Titled Tuesday Blitz February 22 Early 2022"]
[White "Korchmar, Vasiliy"]
[Black "Slugin, Sergey"]
[WhiteFideId "24131750"]
[BlackFideId "4122569"]
[WhiteElo "2370"]
[BlackElo "2358"]
[Result "0-1"]
[Round "03"]
[TimeControl "180+1"]
[Date "2022.02.22"]
[WhiteClock "0:00:02"]
[BlackClock "0:00:06"]

1. d4 {[%clk 0:03:00]}  Nf6 {[%clk 0:02:56]} 2. Bf4 {[%clk 0:03:01]}  c5 {[%clk 0:02:54]} 3. d5 {[%clk 0:02:57]}  d6 {[%clk 0:02:54]} 4. Nc3 {[%clk 0:02:57]}  g6 {[%clk 0:02:53]} 5. e4 {[%clk 0:02:54]}  Bg7 {[%clk 0:02:54]} 6. Bb5+ {[%clk 0:02:54]}  Bd7 {[%clk 0:02:53]} 7. a4 {[%clk 0:02:55]}  a6 {[%clk 0:02:52]} 8. Be2 {[%clk 0:02:53]}  Qa5 {[%clk 0:02:50]} 9. Bd2 {[%clk 0:02:46]}  O-O {[%clk 0:02:49]} 10. Nf3 {[%clk 0:02:45]}  Bg4 {[%clk 0:02:35]} 11. O-O {[%clk 0:02:45]}  Nbd7 {[%clk 0:02:35]} 12. h3 {[%clk 0:02:38]}  Bxf3 {[%clk 0:02:34]} 13. Bxf3 {[%clk 0:02:39]}  Rfb8 {[%clk 0:02:30]} 14. g3 {[%clk 0:02:30]}  Ne8 {[%clk 0:02:05]} 15. Bg2 {[%clk 0:02:28]}  Qd8 {[%clk 0:01:59]} 16. a5 {[%clk 0:02:22]}  b5 {[%clk 0:01:58]} 17. axb6 {[%clk 0:02:23]}  Qxb6 {[%clk 0:01:56]} 18. Ra2 {[%clk 0:02:15]}  Nc7 {[%clk 0:01:55]} 19. Be3 {[%clk 0:01:56]}  Ne5 {[%clk 0:01:49]} 20. Qe2 {[%clk 0:01:52]}  Qb4 {[%clk 0:01:37]} 21. f4 {[%clk 0:01:44]}  Nc4 {[%clk 0:01:11]} 22. Ra4 {[%clk 0:01:43]}  Nxe3 {[%clk 0:01:04]} 23. Rxb4 {[%clk 0:01:44]}  Rxb4 {[%clk 0:01:05]} 24. Rf3 {[%clk 0:01:23]}  Nxg2 {[%clk 0:01:02]} 25. Kxg2 {[%clk 0:01:24]}  Rxb2 {[%clk 0:01:02]} 26. e5 {[%clk 0:01:24]}  a5 {[%clk 0:00:55]} 27. h4 {[%clk 0:00:39]}  a4 {[%clk 0:00:53]} 28. exd6 {[%clk 0:00:39]}  exd6 {[%clk 0:00:45]} 29. Nxa4 {[%clk 0:00:39]}  Rxa4 {[%clk 0:00:31]} 30. Qe7 {[%clk 0:00:40]}  Rxc2+ {[%clk 0:00:24]} 31. Kh3 {[%clk 0:00:37]}  h5 {[%clk 0:00:08]} 32. Rf1 {[%clk 0:00:12]}  Raa2 {[%clk 0:00:06]} 33. Rh1 {[%clk 0:00:13]}  Nxd5 {[%clk 0:00:06]} 34. Qe8+ {[%clk 0:00:13]}  Kh7 {[%clk 0:00:06]} 35. Qxf7 {[%clk 0:00:13]}  Ne3 {[%clk 0:00:06]} 36. f5 {[%clk 0:00:09]}  Nxf5 {[%clk 0:00:07]} 37. Qd5 {[%clk 0:00:06]}  Ra3 {[%clk 0:00:05]} 38. Rg1 {[%clk 0:00:05]}  Rcc3 {[%clk 0:00:03]} 39. Qf7 {[%clk 0:00:03]}  Rxg3+ {[%clk 0:00:04]} 40. Rxg3 {[%clk 0:00:04]}  Rxg3+ {[%clk 0:00:04]} 41. Kh2 {[%clk 0:00:05]}  Rg4 {[%clk 0:00:04]} 42. Kh3 {[%clk 0:00:04]}  Rxh4+ {[%clk 0:00:04]} 43. Kg2 {[%clk 0:00:05]}  Rg4+ {[%clk 0:00:05]} 44. Kf3 {[%clk 0:00:06]}  c4 {[%clk 0:00:04]} 45. Qc7 {[%clk 0:00:06]}  c3 {[%clk 0:00:03]} 46. Ke2 {[%clk 0:00:06]}  c2 {[%clk 0:00:03]} 47. Kf3 {[%clk 0:00:06]}  Rd4 {[%clk 0:00:02]} 48. Qxc2 {[%clk 0:00:05]}  Rg4 {[%clk 0:00:03]} 49. Qc7 {[%clk 0:00:05]}  d5 {[%clk 0:00:03]} 50. Qd7 {[%clk 0:00:05]}  d4 {[%clk 0:00:03]} 51. Kf2 {[%clk 0:00:04]}  Kh6 {[%clk 0:00:04]} 52. Kf3 {[%clk 0:00:03]}  Bf6 {[%clk 0:00:04]} 53. Qe8 {[%clk 0:00:03]}  Rg3+ {[%clk 0:00:04]} 54. Kf2 {[%clk 0:00:03]}  Bh4 {[%clk 0:00:03]} 55. Qf8+ {[%clk 0:00:03]}  Kg5 {[%clk 0:00:03]} 56. Qd8+ {[%clk 0:00:03]}  Kg4 {[%clk 0:00:03]} 57. Ke2 {[%clk 0:00:03]}  Rg2+ {[%clk 0:00:02]} 58. Kd3 {[%clk 0:00:03]}  Rg3+ {[%clk 0:00:03]} 59. Ke2 {[%clk 0:00:03]}  Re3+ {[%clk 0:00:04]} 60. Kd2 {[%clk 0:00:03]}  Kh3 {[%clk 0:00:04]} 61. Qd5 {[%clk 0:00:02]}  Be1+ {[%clk 0:00:04]} 62. Kd1 {[%clk 0:00:02]}  Bg3 {[%clk 0:00:04]} 63. Qh1+ {[%clk 0:00:02]}  Kg4 {[%clk 0:00:05]} 64. Qd5 {[%clk 0:00:02]}  h4 {[%clk 0:00:05]} 65. Qg8 {[%clk 0:00:02]}  g5 {[%clk 0:00:05]} 66. Qd5 {[%clk 0:00:02]}  h3 {[%clk 0:00:06]} 67. Qh1 {[%clk 0:00:02]}  h2 {[%clk 0:00:06]} 0-1


[Site "https://www.chess.com"]

[Event "Titled Tuesday Blitz February 22 Early 2022"]
[White "Kozak, Antoni"]
[Black "Timofeev, Artyom"]
[WhiteFideId "21832030"]
[BlackFideId "4140419"]
[WhiteElo "2232"]
[BlackElo "2583"]
[Result "1/2-1/2"]
[Round "03"]
[TimeControl "180+1"]
[Date "2022.02.22"]
[WhiteClock "0:00:04"]
[BlackClock "0:00:08"]

1. Nf3 {[%clk 0:03:00]}  c5 {[%clk 0:02:59]} 2. c4 {[%clk 0:02:57]}  Nc6 {[%clk 0:02:57]} 3. Nc3 {[%clk 0:02:57]}  Nf6 {[%clk 0:02:53]} 4. g3 {[%clk 0:02:57]}  d5 {[%clk 0:02:52]} 5. d4 {[%clk 0:02:56]}  dxc4 {[%clk 0:02:44]} 6. d5 {[%clk 0:02:46]}  Nb4 {[%clk 0:02:44]} 7. e4 {[%clk 0:02:41]}  e6 {[%clk 0:02:44]} 8. Bxc4 {[%clk 0:02:36]}  exd5 {[%clk 0:02:44]} 9. exd5 {[%clk 0:02:35]}  Be7 {[%clk 0:02:37]} 10. Bb5+ {[%clk 0:02:15]}  Kf8 {[%clk 0:02:31]} 11. Bc4 {[%clk 0:01:59]}  b5 {[%clk 0:02:05]} 12. Bxb5 {[%clk 0:01:55]}  Bb7 {[%clk 0:02:04]} 13. O-O {[%clk 0:01:52]}  Nbxd5 {[%clk 0:02:04]} 14. Nxd5 {[%clk 0:01:47]}  Qxd5 {[%clk 0:02:04]} 15. Qxd5 {[%clk 0:01:45]}  Bxd5 {[%clk 0:02:04]} 16. Ne5 {[%clk 0:01:41]}  Bd6 {[%clk 0:01:44]} 17. Bf4 {[%clk 0:01:34]}  Rd8 {[%clk 0:01:37]} 18. Rfd1 {[%clk 0:01:07]}  Ke7 {[%clk 0:01:36]} 19. Re1 {[%clk 0:00:52]}  Kf8 {[%clk 0:01:17]} 20. Rad1 {[%clk 0:00:49]}  h6 {[%clk 0:01:08]} 21. Nd7+ {[%clk 0:00:49]}  Rxd7 {[%clk 0:01:07]} 22. Bxd7 {[%clk 0:00:48]}  Bxf4 {[%clk 0:01:07]} 23. gxf4 {[%clk 0:00:44]}  g6 {[%clk 0:01:01]} 24. Re5 {[%clk 0:00:35]}  Bxa2 {[%clk 0:00:58]} 25. Rxc5 {[%clk 0:00:30]}  Kg7 {[%clk 0:00:58]} 26. Bb5 {[%clk 0:00:28]}  Rb8 {[%clk 0:00:56]} 27. Ra1 {[%clk 0:00:25]}  a6 {[%clk 0:00:40]} 28. Rxa2 {[%clk 0:00:20]}  axb5 {[%clk 0:00:39]} 29. Ra7 {[%clk 0:00:19]}  Nh5 {[%clk 0:00:31]} 30. Rcc7 {[%clk 0:00:19]}  Rf8 {[%clk 0:00:30]} 31. f5 {[%clk 0:00:19]}  gxf5 {[%clk 0:00:29]} 32. Rab7 {[%clk 0:00:19]}  Nf4 {[%clk 0:00:28]} 33. Rxb5 {[%clk 0:00:15]}  Rd8 {[%clk 0:00:28]} 34. f3 {[%clk 0:00:16]}  Kf6 {[%clk 0:00:26]} 35. Rb6+ {[%clk 0:00:13]}  Ne6 {[%clk 0:00:25]} 36. Ra7 {[%clk 0:00:13]}  Rd2 {[%clk 0:00:23]} 37. b4 {[%clk 0:00:13]}  Rb2 {[%clk 0:00:23]} 38. h4 {[%clk 0:00:11]}  Ke5 {[%clk 0:00:20]} 39. Rxf7 {[%clk 0:00:11]}  Nd4 {[%clk 0:00:21]} 40. Kf1 {[%clk 0:00:06]}  Kf4 {[%clk 0:00:19]} 41. Rxh6 {[%clk 0:00:05]}  Nxf3 {[%clk 0:00:18]} 42. Rc6 {[%clk 0:00:03]}  Rxb4 {[%clk 0:00:12]} 43. h5 {[%clk 0:00:03]}  Rb1+ {[%clk 0:00:12]} 44. Kf2 {[%clk 0:00:03]}  Rb2+ {[%clk 0:00:12]} 45. Kf1 {[%clk 0:00:03]}  Rb1+ {[%clk 0:00:12]} 46. Kg2 {[%clk 0:00:04]}  Rb2+ {[%clk 0:00:12]} 47. Kf1 {[%clk 0:00:04]}  Rb1+ {[%clk 0:00:08]} 1/2-1/2


[Site "https://www.chess.com"]